Workbook

Sheet Relevé des compteurs

Sheet Mensuelle Solaire
B1: Mois | C1: Moyenne | E1: 2009 | F1: 2010 | G1: 2011 | H1: 2012 | I1: 2013 | J1: 2014 | K1: 2015 | L1: 2016
A3: 6 | B3: Juin | C3: 1093.2 | E3: 0 | F3: 0 | G3: 0 | H3: 906.875 | I3: 1121.34375 | J3: 1285.833333 | K3: 1222 | L3: 930
A4: 7 | B4: Juillet | C4: 1131 | E4: 0 | F4: 0 | G4: 0 | H4: 1088.025 | I4: 1318 | J4: 1067.166667 | K4: 1166 | L4: 1015.592593
A5: 8 | B5: Août | C5: 1051.2 | E5: 0 | F5: 0 | G5: 0 | H5: 1174.85 | I5: 1014.285714 | J5: 871.2631579 | K5: 1032.829268 | L5: 1162.835979
A6: 9 | B6: Septembre | C6: 796.8 | E6: 0 | F6: 0 | G6: 0 | H6: 815.75 | I6: 835.7142857 | J6: 569.7368421 | K6: 850.7707317 | L6: 910.5714286
A7: 10 | B7: Octobre | C7: 449.8 | E7: 0 | F7: 0 | G7: 0 | H7: 594.5 | I7: 415.59375 | J7: 284 | K7: 434.6592593 | L7: 520
A8: 11 | B8: Novembre | C8: 228.8 | E8: 0 | F8: 0 | G8: 0 | H8: 184 | I8: 202.40625 | J8: 233 | K8: 230.6439665 | L8: 293.6363636
A9: 12 | B9: Décembre | C9: 194 | E9: 0 | F9: 0 | G9: 0 | H9: 129 | I9: 237 | J9: 95.81818182 | K9: 221.8387097 | L9: 286.3636364
A10: 1 | B10: Janvier | C10: 202.4 | E10: 0 | F10: 0 | G10: 0 | H10: 94 | I10: 218 | J10: 168.5818182 | K10: 242.516129 | L10: 288.1176471
A11: 2 | B11: Février | C11: 308.3333333 | E11: 0 | F11: 0 | G11: 66.2 | H11: 336 | I11: 320 | J11: 400.6 | K11: 386.7419355 | L11: 339.8823529
A12: 3 | B12: Mars | C12: 789 | E12: 0 | F12: 0 | G12: 892.8 | H12: 637 | I12: 961 | J12: 824.7 | K12: 609.34375 | L12: 808.8181818
A13: 4 | B13: Avril | C13: 963.3333333 | E13: 0 | F13: 0 | G13: 850 | H13: 903 | I13: 982 | J13: 1114.3 | K13: 852.9229167 | L13: 1078.181818
A14: 5 | B14: Mai | C14: 995.5 | E14: 0 | F14: 0 | G14: 1158 | H14: 816.65625 | I14: 1074 | J14: 1079 | K14: 662.7333333 | L14: 1182
A16: 6 | B16: Juin | C16: 1093.2 | E16: 0 | F16: 0 | G16: 0 | H16: 906.875 | I16: 1121.34375 | J16: 1285.833333 | K16: 1222 | L16: 930
A17: 7 | B17: Juillet | C17: 2224.2 | E17: 0 | F17: 0 | G17: 0 | H17: 1994.9 | I17: 2439.34375 | J17: 2353 | K17: 2388 | L17: 1945.592593
A18: 8 | B18: Août | C18: 3275.4 | E18: 0 | F18: 0 | G18: 0 | H18: 3169.75 | I18: 3453.629464 | J18: 3224.263158 | K18: 3420.829268 | L18: 3108.428571
A19: 9 | B19: Septembre | C19: 4072 | E19: 0 | F19: 0 | G19: 0 | H19: 3985.5 | I19: 4289.34375 | J19: 3794 | K19: 4271.6 | L19: 4019
A20: 10 | B20: Octobre | C20: 4521.6 | E20: 0 | F20: 0 | G20: 0 | H20: 4580 | I20: 4704.9375 | J20: 4078 | K20: 4706.259259 | L20: 4539
A21: 11 | B21: Novembre | C21: 4750.4 | E21: 0 | F21: 0 | G21: 0 | H21: 4764 | I21: 4907.34375 | J21: 4311 | K21: 4936.903226 | L21: 4832.636364
A22: 12 | B22: Décembre | C22: 4944.4 | E22: 0 | F22: 0 | G22: 0 | H22: 4893 | I22: 5144.34375 | J22: 4406.818182 | K22: 5158.741935 | L22: 5119
A23: 1 | B23: Janvier | C23: 5146.4 | E23: 0 | F23: 0 | G23: 0 | H23: 4987 | I23: 5362.34375 | J23: 4575.4 | K23: 5401.258065 | L23: 5407.117647
A24: 2 | B24: Février | C24: 4597 | E24: 0 | F24: 0 | G24: 66.2 | H24: 5323 | I24: 5682.34375 | J24: 4976 | K24: 5788 | L24: 5747
A25: 3 | B25: Mars | C25: 5386 | E25: 0 | F25: 0 | G25: 959 | H25: 5960 | I25: 6643.34375 | J25: 5800.7 | K25: 6397.34375 | L25: 6555.818182
A26: 4 | B26: Avril | C26: 6349.333333 | E26: 0 | F26: 0 | G26: 1809 | H26: 6863 | I26: 7625.34375 | J26: 6915 | K26: 7250.266667 | L26: 7634
A27: 5 | B27: Mai | C27: 7344.833333 | E27: 0 | F27: 0 | G27: 2967 | H27: 7679.65625 | I27: 8699.34375 | J27: 7994 | K27: 7913 | L27: 8816

Sheet Graphics Solaire

Sheet Cumul Solaire

Sheet Mensuelle J+N
B1: Mois | C1: Moyenne | E1: 2009 | F1: 2010 | G1: 2011 | H1: 2012 | I1: 2013 | J1: 2014 | K1: 2015 | L1: 2016
A3: 6 | B3: Juin | C3: -188.25 | E3: 521.4705882 | F3: 430.25 | G3: 461 | H3: -387.0625 | I3: -551.34375 | J3: -793.3333333 | K3: -784 | L3: -403.0769231
A4: 7 | B4: Juillet | C4: -199.125 | E4: 449.9117647 | F4: 526.4642857 | G4: 396.9722222 | H4: -589.5375 | I4: -810 | J4: -548.6666667 | K4: -631 | L4: -385.7378917
A5: 8 | B5: Août | C5: -115 | E5: 573.6968326 | F5: 513.2857143 | G5: 470.4944444 | H5: -655.4 | I5: -536.5714286 | J5: -404.6315789 | K5: -440.0487805 | L5: -439.9708995
A6: 9 | B6: Septembre | C6: 95.875 | E6: 545.5384615 | F6: 810.9090909 | G6: 503.6666667 | H6: -184.125 | I6: -274.4285714 | J6: 22.63157895 | K6: -294.7512195 | L6: -364.2142857
A7: 10 | B7: Octobre | C7: 392.375 | E7: 757.5625 | F7: 871.6242424 | G7: 588.9666667 | H7: -171.875 | I7: 172.4375 | J7: 330 | K7: 264.1703704 | L7: 326
A8: 11 | B8: Novembre | C8: 586.625 | E8: 647.9375 | F8: 932.3416667 | G8: 664.4357143 | H8: 452 | I8: 682.5625 | J8: 357 | K8: 438.2102748 | L8: 519.0909091
A9: 12 | B9: Décembre | C9: 907.25 | E9: 1115.5 | F9: 1551.469828 | G9: 931.8392857 | H9: 937 | I9: 597 | J9: 715.8181818 | K9: 670.2258065 | L9: 738.9090909
A10: 1 | B10: Janvier | C10: 955.5 | E10: 1491 | F10: 1104.221839 | G10: 1022.625 | H10: 1019 | I10: 566 | J10: 689.0151515 | K10: 960.0322581 | L10: 792.3235294
A11: 2 | B11: Février | C11: 673.625 | E11: 1150.8 | F11: 902.0333333 | G11: 1056.2 | H11: 640.3870968 | I11: 450 | J11: 387.1666667 | K11: 439.1612903 | L11: 363.6764706
A12: 3 | B12: Mars | C12: 203.875 | E12: 964.2 | F12: 592 | G12: -231.2 | H12: 214.6129032 | I12: -49 | J12: -157.9 | K12: 274.15625 | L12: 24.42424242
A13: 4 | B13: Avril | C13: 8.5 | E13: 749.0625 | F13: 478.15 | G13: -114 | H13: -180 | I13: -397 | J13: -88.1 | K13: -117.7895833 | L13: -262.4242424
A14: 5 | B14: Mai | C14: -201.5 | E14: 656.9375 | F14: 483.25 | G14: -607 | H14: -134.65625 | I14: -550 | J14: -778 | K14: -137.3666667 | L14: -545
A16: 6 | B16: Juin | C16: -188.25 | E16: 521.4705882 | F16: 430.25 | G16: 461 | H16: -387.0625 | I16: -551.34375 | J16: -793.3333333 | K16: -784 | L16: -403.0769231
A17: 7 | B17: Juillet | C17: -387.25 | E17: 971.3823529 | F17: 956.7142857 | G17: 857.9722222 | H17: -976.6 | I17: -1361.34375 | J17: -1342 | K17: -1415 | L17: -788.8148148
A18: 8 | B18: Août | C18: -502.25 | E18: 1545.079186 | F18: 1470 | G18: 1328.466667 | H18: -1632 | I18: -1897.915179 | J18: -1746.631579 | K18: -1855.04878 | L18: -1228.785714
A19: 9 | B19: Septembre | C19: -406.375 | E19: 2090.617647 | F19: 2280.909091 | G19: 1832.133333 | H19: -1816.125 | I19: -2172.34375 | J19: -1724 | K19: -2149.8 | L19: -1593
A20: 10 | B20: Octobre | C20: -14.125 | E20: 2848.180147 | F20: 3152.533333 | G20: 2421.1 | H20: -1988 | I20: -1999.90625 | J20: -1394 | K20: -1885.62963 | L20: -1267
A21: 11 | B21: Novembre | C21: 572.75 | E21: 3496.117647 | F21: 4084.875 | G21: 3085.535714 | H21: -1536 | I21: -1317.34375 | J21: -1037 | K21: -1447.419355 | L21: -747.9090909
A22: 12 | B22: Décembre | C22: 1479.875 | E22: 4611.617647 | F22: 5636.344828 | G22: 4017.375 | H22: -599 | I22: -720.34375 | J22: -321.1818182 | K22: -777.1935484 | L22: -9
A23: 1 | B23: Janvier | C23: 2435.5 | E23: 6102.617647 | F23: 6740.566667 | G23: 5040 | H23: 420 | I23: -154.34375 | J23: 367.8333333 | K23: 182.8387097 | L23: 783.3235294
A24: 2 | B24: Février | C24: 3109 | E24: 7253.417647 | F24: 7642.6 | G24: 6096.2 | H24: 1060.387097 | I24: 295.65625 | J24: 755 | K24: 622 | L24: 1147
A25: 3 | B25: Mars | C25: 3313 | E25: 8217.617647 | F25: 8234.6 | G25: 5865 | H25: 1275 | I25: 246.65625 | J25: 597.1 | K25: 896.15625 | L25: 1171.424242
A26: 4 | B26: Avril | C26: 3321.5 | E26: 8966.680147 | F26: 8712.75 | G26: 5751 | H26: 1095 | I26: -150.34375 | J26: 509 | K26: 778.3666667 | L26: 909
A27: 5 | B27: Mai | C27: 3120 | E27: 9623.617647 | F27: 9196 | G27: 5144 | H27: 960.34375 | I27: -700.34375 | J27: -269 | K27: 641 | L27: 364

Sheet Graphics J+N

Sheet Cumul J+N

Sheet Mensuelle J+N-S
B1: Mois | C1: Moyenne | E1: 2009 | F1: 2010 | G1: 2011 | H1: 2012 | I1: 2013 | J1: 2014 | K1: 2015 | L1: 2016
A3: 6 | B3: Juin | C3: 494.875 | E3: 521.4705882 | F3: 430.25 | G3: 461 | H3: 519.8125 | I3: 570 | J3: 492.5 | K3: 438 | L3: 526.9230769
A4: 7 | B4: Juillet | C4: 507.75 | E4: 449.9117647 | F4: 526.4642857 | G4: 396.9722222 | H4: 498.4875 | I4: 508 | J4: 518.5 | K4: 535 | L4: 629.8547009
A5: 8 | B5: Août | C5: 542.125 | E5: 573.6968326 | F5: 513.2857143 | G5: 470.4944444 | H5: 519.45 | I5: 477.7142857 | J5: 466.6315789 | K5: 592.7804878 | L5: 722.8650794
A6: 9 | B6: Septembre | C6: 593.5 | E6: 545.5384615 | F6: 810.9090909 | G6: 503.6666667 | H6: 631.625 | I6: 561.2857143 | J6: 592.3684211 | K6: 556.0195122 | L6: 546.3571429
A7: 10 | B7: Octobre | C7: 673.625 | E7: 757.5625 | F7: 871.6242424 | G7: 588.9666667 | H7: 422.625 | I7: 588.03125 | J7: 614 | K7: 698.8296296 | L7: 846
A8: 11 | B8: Novembre | C8: 729.625 | E8: 647.9375 | F8: 932.3416667 | G8: 664.4357143 | H8: 636 | I8: 884.96875 | J8: 590 | K8: 668.8542413 | L8: 812.7272727
A9: 12 | B9: Décembre | C9: 1028.5 | E9: 1115.5 | F9: 1551.469828 | G9: 931.8392857 | H9: 1066 | I9: 834 | J9: 811.6363636 | K9: 892.0645161 | L9: 1025.272727
A10: 1 | B10: Janvier | C10: 1082 | E10: 1491 | F10: 1104.221839 | G10: 1022.625 | H10: 1113 | I10: 784 | J10: 857.5969697 | K10: 1202.548387 | L10: 1080.441176
A11: 2 | B11: Février | C11: 904.875 | E11: 1150.8 | F11: 902.0333333 | G11: 1122.4 | H11: 976.3870968 | I11: 770 | J11: 787.7666667 | K11: 825.9032258 | L11: 703.5588235
A12: 3 | B12: Mars | C12: 795.75 | E12: 964.2 | F12: 592 | G12: 661.6 | H12: 851.6129032 | I12: 912 | J12: 666.8 | K12: 883.5 | L12: 833.2424242
A13: 4 | B13: Avril | C13: 731 | E13: 749.0625 | F13: 478.15 | G13: 736 | H13: 723 | I13: 585 | J13: 1026.2 | K13: 735.1333333 | L13: 815.7575758
A14: 5 | B14: Mai | C14: 545 | E14: 656.9375 | F14: 483.25 | G14: 551 | H14: 682 | I14: 524 | J14: 301 | K14: 525.3666667 | L14: 637
A16: 6 | B16: Juin | C16: 494.875 | E16: 521.4705882 | F16: 430.25 | G16: 461 | H16: 519.8125 | I16: 570 | J16: 492.5 | K16: 438 | L16: 526.9230769
A17: 7 | B17: Juillet | C17: 1002.875 | E17: 971.3823529 | F17: 956.7142857 | G17: 857.9722222 | H17: 1018.3 | I17: 1078 | J17: 1011 | K17: 973 | L17: 1156.777778
A18: 8 | B18: Août | C18: 1545.125 | E18: 1545.079186 | F18: 1470 | G18: 1328.466667 | H18: 1537.75 | I18: 1555.714286 | J18: 1477.631579 | K18: 1565.780488 | L18: 1879.642857
A19: 9 | B19: Septembre | C19: 2138.5 | E19: 2090.617647 | F19: 2280.909091 | G19: 1832.133333 | H19: 2169.375 | I19: 2117 | J19: 2070 | K19: 2121.8 | L19: 2426
A20: 10 | B20: Octobre | C20: 2812 | E20: 2848.180147 | F20: 3152.533333 | G20: 2421.1 | H20: 2592 | I20: 2705.03125 | J20: 2684 | K20: 2820.62963 | L20: 3272
A21: 11 | B21: Novembre | C21: 3541.625 | E21: 3496.117647 | F21: 4084.875 | G21: 3085.535714 | H21: 3228 | I21: 3590 | J21: 3274 | K21: 3489.483871 | L21: 4084.727273
A22: 12 | B22: Décembre | C22: 4570.125 | E22: 4611.617647 | F22: 5636.344828 | G22: 4017.375 | H22: 4294 | I22: 4424 | J22: 4085.636364 | K22: 4381.548387 | L22: 5110
A23: 1 | B23: Janvier | C23: 5652 | E23: 6102.617647 | F23: 6740.566667 | G23: 5040 | H23: 5407 | I23: 5208 | J23: 4943.233333 | K23: 5584.096774 | L23: 6190.441176
A24: 2 | B24: Février | C24: 6556.75 | E24: 7253.417647 | F24: 7642.6 | G24: 6162.4 | H24: 6383.387097 | I24: 5978 | J24: 5731 | K24: 6410 | L24: 6894
A25: 3 | B25: Mars | C25: 7352.625 | E25: 8217.617647 | F25: 8234.6 | G25: 6824 | H25: 7235 | I25: 6890 | J25: 6397.8 | K25: 7293.5 | L25: 7727.242424
A26: 4 | B26: Avril | C26: 8083.625 | E26: 8966.680147 | F26: 8712.75 | G26: 7560 | H26: 7958 | I26: 7475 | J26: 7424 | K26: 8028.633333 | L26: 8543
A27: 5 | B27: Mai | C27: 8628.625 | E27: 9623.617647 | F27: 9196 | G27: 8111 | H27: 8640 | I27: 7999 | J27: 7725 | K27: 8554 | L27: 9180

Sheet Graphics J+N-S

Sheet Cumul J+N-S

Sheet Mensuelle Exclusif
B1: Mois | C1: Moyenne | E1: 2009 | F1: 2010 | G1: 2011 | H1: 2012 | I1: 2013 | J1: 2014 | K1: 2015 | L1: 2016
A3: 6 | B3: Juin | C3: 219.875 | E3: 231.1764706 | F3: 218.375 | G3: 207 | H3: 196.0625 | I3: 262.0625 | J3: 201.6666667 | K3: 222 | L3: 220.7692308
A4: 7 | B4: Juillet | C4: 211.625 | E4: 202.6470588 | F4: 235.0178571 | G4: 178.25 | H4: 187.1375 | I4: 194 | J4: 201.3333333 | K4: 235 | L4: 260.1566952
A5: 8 | B5: Août | C5: 217.25 | E5: 239.4321267 | F5: 262.6071429 | G5: 195.15 | H5: 182.8 | I5: 180.8571429 | J5: 198.2368421 | K5: 222.2926829 | L5: 256.7169312
A6: 9 | B6: Septembre | C6: 219.5 | E6: 208.0384615 | F6: 273.6363636 | G6: 185.9333333 | H6: 234.625 | I6: 175.1428571 | J6: 220.7631579 | K6: 226.9073171 | L6: 230.3571429
A7: 10 | B7: Octobre | C7: 616.125 | E7: 803.09375 | F7: 819.7636364 | G7: 608.7666667 | H7: 708.375 | I7: 360.375 | J7: 317 | K7: 576.1333333 | L7: 736
A8: 11 | B8: Novembre | C8: 1132.625 | E8: 1030.272917 | F8: 1290.35 | G8: 1025.328571 | H8: 1224 | I8: 1222.625 | J8: 1047 | K8: 1010.408602 | L8: 1211.818182
A9: 12 | B9: Décembre | C9: 1459.125 | E9: 1608.633333 | F9: 1765.525862 | G9: 1329.321429 | H9: 1382 | I9: 1456 | J9: 1511.484848 | K9: 1130.032258 | L9: 1490.181818
A10: 1 | B10: Janvier | C10: 1597.375 | E10: 1816 | F10: 1588.024138 | G10: 1513.25 | H10: 1468 | I10: 1386 | J10: 1625.815152 | K10: 1468.967742 | L10: 1912.882353
A11: 2 | B11: Février | C11: 1435.625 | E11: 1432.666667 | F11: 1398 | G11: 1745.8 | H11: 1506.580645 | I11: 1185 | J11: 1487.7 | K11: 1359.258065 | L11: 1369.117647
A12: 3 | B12: Mars | C12: 1075 | E12: 1312.333333 | F12: 1082.1 | G12: 880.2 | H12: 1297.419355 | I12: 535 | J12: 1132.8 | K12: 1315.5625 | L12: 1044.606061
A13: 4 | B13: Avril | C13: 658.25 | E13: 784.6875 | F13: 358.85 | G13: 706 | H13: 693 | I13: 216 | J13: 607.2 | K13: 972.3708333 | L13: 928.3939394
A14: 5 | B14: Mai | C14: 361.375 | E14: 548.3125 | F14: 259.75 | G14: 310 | H14: 311.9375 | I14: 207 | J14: 441 | K14: 295.0666667 | L14: 518
A16: 6 | B16: Juin | C16: 219.875 | E16: 231.1764706 | F16: 218.375 | G16: 207 | H16: 196.0625 | I16: 262.0625 | J16: 201.6666667 | K16: 222 | L16: 220.7692308
A17: 7 | B17: Juillet | C17: 431.5 | E17: 433.8235294 | F17: 453.3928571 | G17: 385.25 | H17: 383.2 | I17: 456.0625 | J17: 403 | K17: 457 | L17: 480.9259259
A18: 8 | B18: Août | C18: 648.75 | E18: 673.2556561 | F18: 716 | G18: 580.4 | H18: 566 | I18: 636.9196429 | J18: 601.2368421 | K18: 679.2926829 | L18: 737.6428571
A19: 9 | B19: Septembre | C19: 868.25 | E19: 881.2941176 | F19: 989.6363636 | G19: 766.3333333 | H19: 800.625 | I19: 812.0625 | J19: 822 | K19: 906.2 | L19: 968
A20: 10 | B20: Octobre | C20: 1484.25 | E20: 1684.387868 | F20: 1809.4 | G20: 1375.1 | H20: 1509 | I20: 1172.4375 | J20: 1139 | K20: 1482.333333 | L20: 1704
A21: 11 | B21: Novembre | C21: 2617.25 | E21: 2714.660784 | F21: 3099.75 | G21: 2400.428571 | H21: 2733 | I21: 2395.0625 | J21: 2186 | K21: 2492.741935 | L21: 2915.818182
A22: 12 | B22: Décembre | C22: 4076.25 | E22: 4323.294118 | F22: 4865.275862 | G22: 3729.75 | H22: 4115 | I22: 3851.0625 | J22: 3697.484848 | K22: 3622.774194 | L22: 4406
A23: 1 | B23: Janvier | C23: 5673.625 | E23: 6139.294118 | F23: 6453.3 | G23: 5243 | H23: 5583 | I23: 5237.0625 | J23: 5323.3 | K23: 5091.741935 | L23: 6318.882353
A24: 2 | B24: Février | C24: 7109.25 | E24: 7571.960784 | F24: 7851.3 | G24: 6988.8 | H24: 7089.580645 | I24: 6422.0625 | J24: 6811 | K24: 6451 | L24: 7688
A25: 3 | B25: Mars | C25: 8184.25 | E25: 8884.294118 | F25: 8933.4 | G25: 7869 | H25: 8387 | I25: 6957.0625 | J25: 7943.8 | K25: 7766.5625 | L25: 8732.606061
A26: 4 | B26: Avril | C26: 8842.5 | E26: 9668.981618 | F26: 9292.25 | G26: 8575 | H26: 9080 | I26: 7173.0625 | J26: 8551 | K26: 8738.933333 | L26: 9661
A27: 5 | B27: Mai | C27: 9203.875 | E27: 10217.29412 | F27: 9552 | G27: 8885 | H27: 9391.9375 | I27: 7380.0625 | J27: 8992 | K27: 9034 | L27: 10179

Sheet Graphics Exclusif

Sheet Cumul Exclusif

Sheet Estimation
D1: Estimation basé sur JUILLET = 1088
A2: Janvier | B2: 22207.33 | C2: =B2/B$14 -> 0.02158609199 | D2: =1088 * C2 / C$8 -> 162.5027494
A3: Février | B3: 42403.39 | C3: =B3/B$14 -> 0.04121717816 | D3: =1088 * C3 / C$8 -> 310.2879751
A4: Mars | B4: 77881.23 | C4: =B4/B$14 -> 0.07570254483 | D4: =1088 * C4 / C$8 -> 569.8980472
A5: Avril | B5: 112953.5 | C5: =B5/B$14 -> 0.1097936871 | D5: =1088 * C5 / C$8 -> 826.5403496
A6: Mai | B6: 147089.5 | C6: =B6/B$14 -> 0.142974751 | D6: =1088 * C6 / C$8 -> 1076.331471
A7: Juin | B7: 154215.2 | C7: =B7/B$14 -> 0.1499011134 | D7: =1088 * C7 / C$8 -> 1128.473977
A8: Juillet | B8: 148684.1 | C8: =B8/B$14 -> 0.1445247429 | D8: =1088 * C8 / C$8 -> 1088
A9: Août | B9: 124579.4 | C9: =B9/B$14 -> 0.1210943588 | D9: =1088 * C9 / C$8 -> 911.6131933
A10: Septembre | B10: 95727.1 | C10: =B10/B$14 -> 0.09304918629 | D10: =1088 * C10 / C$8 -> 700.4856928
A11: Octobre | B11: 59199.18 | C11: =B11/B$14 -> 0.05754311504 | D11: =1088 * C11 / C$8 -> 433.1916314
A12: Novembre | B12: 25560.38 | C12: =B12/B$14 -> 0.02484534223 | D12: =1088 * C12 / C$8 -> 187.0387852
A13: Décembre | B13: 18279.24 | C13: =B13/B$14 -> 0.01776788817 | D13: =1088 * C13 / C$8 -> 133.7588425
B14: =SUM(B2:B13) -> 1028779.55
